Cogmind - Beta 14 @@@ ROGUE MODE // 2024.08.29 @ 17:24:28 Player: Lord Draconis Result: Destroyed by D-53 Grenadier with Mini Grenade Launcher Performance ------------- Evolutions (0) 0 Regions Visited (2) 400 Robots Destroyed (27) 135 Value Destroyed (593) 593 Prototype IDs (0) 0 Alien Tech Used (0) 0 Bonus (-33) -33 TOTAL SCORE: 1095 Bonus ------- Follower Combat Kills 7 Friendly Fire -40 Cogmind --------- Core Integrity 0/250 Matter 261/300 Energy 264/265 System Corruption 1% Temperature Cool (8) Movement Rolling (215) Ox9 Location -10/Mines Parts ------- > --- POWER (1) -------- Improved Ion Engine > --- PROPULSION (2) --- Light Treads Wheel > --- UTILITY (2) ------ Huge Storage Unit Core Shielding > --- WEAPON (2) ------- Beam Cannon Heavy Assault Rifle > --- INVENTORY (25) --- Ion Engine Improved Ion Engine Improved Ion Engine Light Treads Light Treads Wheel Improved Heat Sink Improved Heat Sink Medium Matter Pod (100) Seismic Detector Power Shielding Hacking Suite Medium Laser Particle Gun Heavy Assault Rifle Heavy Assault Rifle Rocket Launcher Rocket Launcher Peak State ------------ > --- POWER ------------ Improved Ion Engine > --- PROPULSION ------- Light Treads Compact Wheel > --- UTILITY ---------- Huge Storage Unit Seismic Detector > --- WEAPON ----------- Medium Laser Heavy Assault Rifle > --- INVENTORY -------- Ion Engine Improved Ion Engine Improved Ion Engine Improved Ion Engine Light Treads Light Treads Light Treads Wheel Wheel Heat Sink Improved Heat Sink Improved Heat Sink Medium Matter Pod Signal Interpreter Terrain Scanner Core Shielding Power Shielding Hacking Suite Beam Cannon Heavy Assault Rifle Heavy Assault Rifle Heavy Assault Rifle Rocket Launcher Rocket Launcher Rocket Launcher [Rating: 13] Favorites ----------- Power Ion Engine Engine Ion Engine Propulsion Light Treads Treads Light Treads Wheel Compact Wheel Utility Huge Storage Unit Device Seismic Detector Storage Huge Storage Unit Processor Signal Interpreter Protection Core Shielding Weapon Medium Laser Energy Gun Medium Laser Energy Cannon Beam Cannon Ballistic Gun Assault Rifle Launcher Rocket Launcher Build | -11 -10 -10 ------- Run | Yrd Mat Min Slots Evolved . | . . . Power . | . . . Propulsion . | . . . Utility . | . . . Weapon . | . . . Parts Attached 24 | 7 9 8 Power 4 | 1 2 1 Engine 4 | 1 2 1 Core . | . . . Reactor . | . . . Propulsion 6 | 2 2 2 Treads 2 | 1 . 1 Leg . | . . . Wheel 4 | 1 2 1 Hover . | . . . Flight . | . . . Utility 6 | 2 3 1 Device 1 | 1 . . Storage 3 | 1 2 . Processor 1 | . 1 . Hackware . | . . . Protection 1 | . . 1 Artifact . | . . . Weapon 8 | 2 2 4 Energy Gun 2 | 1 1 . Energy Cannon 1 | . . 1 Ballistic Gun 3 | 1 1 1 Ballistic Cannon . | . . . Launcher 2 | . . 2 Special Weapon . | . . . Impact Weapon . | . . . Slashing Weapon . | . . . Piercing Weapon . | . . . Special Melee Weapon . | . . . Unidentified Prototypes . | . . . Parts Lost 7 | . 1 6 Power 1 | . . 1 Propulsion 2 | . . 2 Utility . | . . . Weapon 4 | . 1 3 Highest Loss Streak 3 | . 1 3 To Critical Strikes . | . . . Average Slot Usage (%) 99 | . 100 99 Engine 13 | . 14 13 Treads 14 | . 14 14 Wheel 14 | . 14 14 Device 9 | . 12 . Storage 14 | . 14 14 Processor 1 | . 1 . Protection 3 | . . 14 Energy Gun 13 | . 14 9 Ballistic Gun 13 | . 13 13 Peak Build Rating 13 | 7 13 13 Average Rating 10 | 5 9 12 On Entrance 6 | . 7 13 Naked Turns . | . . . Heaviest Build 95 | 15 93 95 Greatest Support 20 | 20 16 16 Greatest Overweight (x) 9 | 1 5 9 Average Overweight (x) 4 | . 3 7 Largest Inventory Capacity 25 | 8 25 25 Average Capacity 22 | 7 21 25 Most Carried 25 | 4 25 24 Average Carried 17 | 2 16 22 Final Capacity 25 | 8 25 25 Final Carried 25 | 4 25 18 Class Distribution -------------------- 100% | Mutant Dominant Class ---------------- Mutant | -10/Materials Mutant | -10/Mines Resources | -11 -10 -10 ----------- Run | Yrd Mat Min Matter Collected 902 | 279 431 192 Remotely . | . . . Salvage Created 1043 | 85 671 287 Parts 56 | 4 40 12 Haulers Intercepted 2 | . 2 . Recyclers Shooed 1 | . 1 . Parts Field Recycled . | . . . Retrieved Matter . | . . . Parts Self-Destructed . | . . . Prevented . | . . . Kills | -11 -10 -10 ------- Run | Yrd Mat Min Combat Hostiles Destroyed 33 | . 13 20 Guns 19 | . 13 6 AOE 14 | . . 14 Classes Destroyed 9 | 2 6 1 Builder 1 | . 1 . Tunneler 2 | 1 . 1 Hauler 2 | . 2 . Recycler 2 | 1 . 1 Operator 1 | . 1 . Watcher 2 | . 2 . Swarmer 5 | . 3 2 Grunt 12 | . 10 2 Assembled 16 | . . 16 Best Kill Streak 14 | 2 3 14 Combat Bots Only 14 | . 3 14 Max Kills in Single Turn 4 | 1 1 4 Gunslinging . | . . . Exploded 4 | . . 4 Melee . | . . . Uniques/NPCs Destroyed . | . . . Combat | -11 -10 -10 -------- Run | Yrd Mat Min Hostile Shots Fired 121 | . 64 57 Missed 26 | . 19 7 Damage Taken 1254 | . 536 718 Core 255 | . 149 106 Absorbed by Shields . | . . . Redirected to Shielding 23 | . . 23 Core Remaining (%) 100 | 100 . . Volleys Fired 100 | 3 64 33 Largest 2 | 2 2 2 Hottest 100 | 70 100 83 Shots Fired 187 | 6 131 50 Gun 179 | 6 131 42 Cannon 1 | . . 1 Launcher 7 | . . 7 Special . | . . . Kinetic 96 | 3 64 29 Thermal 84 | 3 67 14 Explosive 7 | . . 7 Electromagnetic . | . . . Robot Hit Streak 9 | 3 9 8 Robot Miss Streak 4 | 1 4 2 Penetration Max . | . . . Secondary Targets 1 | . . 1 Max Gunslinging Chain 1 | . . 1 Shots Hit Robots 118 | 4 84 30 Core Hits 80 | 3 35 42 Critical Kills . | . . . Critical Parts Destroyed . | . . . Critical Strikes 9 | 1 7 1 Burn 9 | 1 7 1 Melee Attacks . | . . . Impact . | . . . Slashing . | . . . Piercing . | . . . Sneak Attacks . | . . . Combat Hostiles . | . . . Follow-up Attacks . | . . . Damage Inflicted 2303 | 47 1071 1185 Guns 1540 | 47 1071 422 Cannons . | . . . Explosions 763 | . . 763 Melee . | . . . Ramming . | . . . Kinetic 852 | 10 531 311 Thermal 688 | 37 540 111 Explosive 763 | . . 763 Electromagnetic . | . . . Impact . | . . . Slashing . | . . . Piercing . | . . . Highest Corruption 1 | . 1 1 Average Corruption 1 | . 1 1 Corruption Purged . | . . . Corruption Blocked . | . . . Effects 24 | . 18 6 Message Errors 4 | . 3 1 Matter Fused 9 | . 7 2 Heat Flow Errors 3 | . 2 1 Energy Discharges 4 | . 3 1 Misfires 3 | . 3 . Weapon Failures 1 | . . 1 Overload Shots . | . . . Overflow Damage 33 | . . 33 Projectiles . | . . . Explosions 33 | . . 33 Melee . | . . . Knockbacks . | . . . Impact . | . . . Kinetic . | . . . Secondary . | . . . Self-Inflicted Damage 18 | . . 18 Shots 1 | . . 1 Rammed . | . . . Targets Rammed . | . . . Kicked . | . . . Crushed . | . . . Highest Temperature 249 | 27 249 225 Average Temperature 72 | 14 72 79 Received Heat Transfer 389 | . 279 110 Effects 6 | . 4 2 Energy Bleed 1 | . 1 . Interference 5 | . 3 2 Siege Activations . | . . . Robots Corrupted . | . . . Combat Hostiles . | . . . Parts Fried . | . . . Impact Corruptions . | . . . Robots Melted . | . . . Combat Hostiles . | . . . Parts Melted 6 | 1 5 . Heat Transferred 2701 | 185 2109 407 Parts Sabotaged . | . . . Parts Stolen . | . . . Parts Stripped . | . . . Power Chain Reactions . | . . . Alert | -11 -10 -10 ------- Run | Yrd Mat Min Peak Influence 178 | 10 178 153 Initial 19 | . 6 19 Average 57 | 4 61 50 Maximum Alert Level . | . . . Low Security (%) 100 | 100 100 100 Level 1 . | . . . Level 2 . | . . . Level 3 . | . . . Level 4 . | . . . Level 5 . | . . . High Security . | . . . Max Security . | . . . Squads Dispatched 5 | . 5 . Investigation 3 | . 3 . Extermination . | . . . Reinforcement 2 | . 2 . Assault . | . . . Garrison . | . . . Intercept . | . . . Searches Triggered . | . . . Construction Impeded . | . . . Haulers Reinforced . | . . . Active Scanning Responses . | . . . Cargo Convoy Interrupts . | . . . Stealth | -11 -10 -10 --------- Run | Yrd Mat Min Distress Signals 2 | . 2 . Communications Jammed . | . . . Distress Signals . | . . . Times Spotted 50 | . 23 27 Peak Tracking Total 14 | . 3 14 Tactical Retreats 4 | . 1 3 Traps | -11 -10 -10 ------- Run | Yrd Mat Min Traps Triggered 3 | . 3 . Indirectly . | . . . Trap Hack Attempts . | . . . Triggered . | . . . Disarmed . | . . . Reprogrammed . | . . . Reused . | . . . Traps Extracted . | . . . Installed . | . . . Triggered . | . . . Machines | -11 -10 -10 ---------- Run | Yrd Mat Min Machines Disabled . | . . . Max in Single Turn . | . . . Machines Repaired . | . . . Machines Dismantled . | . . . Machines Sabotaged . | . . . Overloaded Fab Kills . | . . . Hacking | -11 -10 -10 --------- Run | Yrd Mat Min Machines Accessed 9 | . 9 . Terminals 7 | . 7 . Fabricators . | . . . Repair Stations . | . . . Recycling Units 2 | . 2 . Scanalyzers . | . . . Garrison Access . | . . . Total Hacks 22 | . 22 . Successful 8 | . 8 . Failed 13 | . 13 . Catastrophic 3 | . 3 . Database Lockouts 1 | . 1 . Manual 16 | . 16 . Terminals 16 | . 16 . Fabricators . | . . . Repair Stations . | . . . Recycling Units 6 | . 6 . Scanalyzers . | . . . Garrison Access . | . . . Terminal Hacks 3 | . 3 . Part Schematic 1 | . 1 . Hauler Manifests 1 | . 1 . Registered Components 1 | . 1 . Fabricator Hacks . | . . . Repair Station Hacks . | . . . Recycling Unit Hacks 2 | . 2 . Retrieve Components 2 | . 2 . Scanalyzer . | . . . Garrison Access Hacks . | . . . Unauthorized Hacks 3 | . 3 . Terminals 2 | . 2 . Botnet 2 | . 2 . Fabricators . | . . . Repair Stations . | . . . Recycling Units 1 | . 1 . Tunnel 1 | . 1 . Scanalyzers . | . . . Garrison Access . | . . . Data Cores Recovered 1 | . 1 . Used . | . . . Hacking Detections 9 | . 9 . Full Trace Events 1 | . 1 . Feedback Events . | . . . Feedback Blocked . | . . . Robot Schematics Acquired . | . . . Robots Built . | . . . Authchips . | . . . Time . | . . . Total Robot Build Rating . | . . . Part Schematics Acquired 1 | . 1 . Parts Built . | . . . Authchips . | . . . Time . | . . . Total Part Build Rating . | . . . Parts Repaired . | . . . Time . | . . . Parts Recycled . | . . . Recycled Matter . | . . . Retrieved Matter . | . . . Retrieved Components 20 | . 20 . Parts Scanalyzed . | . . . Part Schematics Acquired . | . . . Parts Damaged . | . . . Bothacking | -11 -10 -10 ------------ Run | Yrd Mat Min Used RIF Installer . | . . . Robots Hacked . | . . . Non-combat . | . . . Combat . | . . . Robot Hacks Applied . | . . . Relay Couplers Released . | . . . Fabnet Peak Effective % . | . . . Robots Rewired . | . . . Allies Hacked . | . . . Hacks Repelled . | . . . Allies | -11 -10 -10 -------- Run | Yrd Mat Min Total Allies 2 | . . 2 Largest Group 2 | . . 2 Highest-Rated Group 49 | . . 49 Highest-Rated Ally 31 | . . 31 Total Orders . | . . . Ally Attacks 20 | . . 20 Total Damage 230 | . . 230 Kills 4 | . . 4 Allies Corrupted . | . . . Allies Melted . | . . . Intel | -11 -10 -10 ------- Run | Yrd Mat Min Robot Analysis Total . | . . . Derelict Logs Recovered 3 | . . 3 Drone Launches . | . . . Drone Recoveries . | . . . Exploration | -11 -10 -10 ------------- Run | Yrd Mat Min Turns Passed 3279 | 59 2470 750 Spaces Moved 1342 | 38 1008 296 Core 3 | 3 . . Treads 1 | 1 . . Legs . | . . . Wheels 1338 | 34 1008 296 Hover . | . . . Flight . | . . . Fastest Speed 50 | 50 95 175 Average Speed 165 | 90 157 200 Slowest Speed 215 | 160 175 215 Overloaded Moves . | . . . Propulsion Burnouts . | . . . Robots Hopped . | . . . Cave-ins Triggered . | . . . Exploration Rate (%) 52 | 3 96 57 Regions Visited 2 Branch Regions 1 Pre-discovered Areas 2 | . 1 1 Known Exits Taken 1 | . 1 . Unknown Exits Taken 1 | 1 . . Scrap Searched 1 | . . 1 Spaces Dug 25 | . . 25 Terrain Destroyed 57 | . . 57 Melee . | . . . Projectile . | . . . AOE 57 | . . 57 Terrain Rammed . | . . . Walls Destroyed . | . . . Machines Disabled . | . . . Actions | -11 -10 -10 --------- Run | Yrd Mat Min Total 2225 | 53 1770 402 Wait 714 | 2 647 65 Move 1340 | 37 1007 296 Hop . | . . . Pick Up 33 | 4 29 . Fast Attach 8 | 7 1 . Attach 7 | . 1 6 Detach . | . . . Swap 9 | . 7 2 Drop 14 | . 14 . Fire 100 | 3 64 33 Melee . | . . . Ram . | . . . Kick . | . . . Crush . | . . . Escape Stasis . | . . . Rewire . | . . . Trap . | . . . Miscellaneous . | . . . Route ------- -11/Scrapyard -10/Materials (discovered 5 exits: *Mat x3 / *Min / *Sub) -10/Mines History --------- Turn | Location | Event 20 | -11/Scrapyard | Discovered new exit (range 16) 60 | -11/Scrapyard | Entered Materials 303 | -10/Materials | Build established: Mutant 715 | -10/Materials | Discovered new exit (range 16) 765 | -10/Materials | Central database locked down 906 | -10/Materials | Discovered new exit (range 15) 1156 | -10/Materials | Discovered new exit (range 12) 1674 | -10/Materials | Discovered new exit (range 6) 2035 | -10/Materials | Core integrity fell below 50% 2295 | -10/Materials | Identified exit to Materials 2327 | -10/Materials | Identified exit to Subcaves 2507 | -10/Materials | Discovered new exit (range 9) 2528 | -10/Materials | Identified exit to Mines 2530 | -10/Materials | Entered Mines 2578 | -10/Mines | Learned location of 1 exit from Materials 2749 | -10/Mines | Found a damaged Exp. Sensor Array with a note attached 2981 | -10/Mines | Learned location of 1 exit from Materials 3022 | -10/Mines | Learned location of Zion (-6) 3055 | -10/Mines | Assembled infested the area 3111 | -10/Mines | Destroyed 14 combat bots 3118 | -10/Mines | Lost 3 parts (1n2w) 3279 | -10/Mines | Core integrity fell below 20% 3280 | -10/Mines | Destroyed by D-53 Grenadier with Mini Grenade Launcher Last Messages --------------- The unstable cave ceiling collapses. as-92117 destroyed. The unstable cave ceiling collapses. Extracted 99 matter. The unstable cave ceiling collapses. Acquired 19 matter. The unstable cave ceiling collapses. 6A-N4C(g) destroyed. System corrupted: Heat flow error (+151). as-21781 destroyed. [Achievement: Exterminator] System corrupted: Hvy. Assault Rifle jammed. Imp. Ion Engine destroyed. Rocket Launcher destroyed. as-52929 destroyed. K-01 Serf collects debris. Acquired 15 matter. K-01 Serf collects debris. V1CGB|EOUIXYLXTVC&ANK System corrupted: Matter fused (-5). Map ----- +----------------------------------------------------+ | #?????????????????????????????????????????????# | | #??????????????????####???????????????????????? | | ##??####???????????# ????????????????????????# | | ### #???????????# #????????????????????????# | | #???????????# #????????????????????????# | | ##???????????# #??????????????????????### | | ##????????????# #????????????????????### % | | ##????????????# #????????????????????# | | ##???????##### #????????????????????## %% | | #???????# ! % #????????????????????# | | #???????# ### %#??###????????????????# % | | ## ##????#### #?# #### #####????????????# | | ### ######## ! !### ##????????????## | | ##?# ] ## ### #?????????????# | | ???# ## #?### #?????????????#?? | | ???########### ### #???## ######??????????? | | ????????????# = #### #????# #??????????? | | ????????????# ### ##???# #??????????? | | ????????????## ### #???## #### #??????##### | | ?????????????##### #????####??# #??????# % | | ???????????????## ##??????????# #???#### ### | | ???????????##### ##??????????# #???# #?? | | ??????????## ####???????# #???# ####?? | | ??????????# t d #???????# #???# ###### | | ?????????# #???????# #???# | | ????????# @ ######??# #???# ###### | | ??????# ###### z #??# ##### ###??? | | ????? ##?????# # #??# ##?? | | ????? #???????# ## #??# ### | | ?????? ????????######### #??######### | | ?????? ???????????????### #?#######??## ! | | ??????? ???????????????## ### ##??## | | ??????? ???????????????## ##??# | | ????????? ???????????????# #### | | ?????????????????????????## | | ??????????????????????????### | | ????????????????????????????## | | ?????????????????????????????# | | ????????????????????????????# ## | | ????????????????????????????# #### # | | ????????????????????????????# #??#### # | | ????????????????????????????## ##?????#### # | | ?????????????????????????????####?????????## # | | ???????????????????????????????????????????### ## | | ?????????????????????????????????????????????####? | | ?????????????????????????????????????????????????? | | ?????????????????????????????????????????????????? | | | | | | | +----------------------------------------------------+ Best States ------------- Heat Dissipation 25 Energy Generation 12 Energy Capacity 265 Matter Stores 300 Matter Capacity 300 Sight Range 16 Terrain Scan Density 10 Core Shielding 20 Evasion (%) 44 Recoil Reduction 1 Item Schematics ----------------- Huge Storage Unit | -10/Materials | Hacked Robot Schematics ------------------ None Fabricated ------------ Nothing Alien Tech Used ----------------- None Achievements -------------- Exterminator Challenges ------------ None Game ------ Seed AuthchipFocalBiocell Manual? 0 Play Time 00:16:48 Cumulative 65.5 hours Start 2024.08.29 @ 17:08:18 End 2024.08.29 @ 17:24:28 Sessions 1 Manual Loads 0 Difficulty Rogue Special Mode None Game No. 49 Rogue 49 Adventurer 0 Explorer 0 Win Type - Total 3 Types 3/0/0/0/0/0/0/0/0 Lore% 25 Gallery% 37 Achievement% 33 Wizard Run 0 Options --------- Layout 0 ASCII 0 Keyboard 0 Movement Mouse Keybinds 0 Fullscreen 1 Font 18/SmallcapsGlow Map View 76x50 Zoom Use 0% Tactical HUD 0 Map Filters NONE Filters NONE Steam 1 RUN: 406818d2-de8d-457d-bb43-fc05117e4c13